[Event "Hungarian Youth-ch U14 2022"]
[Site "Eger"]
[Date "2022.07.26"]
[Round "4.3"]
[White "Giang, Tran Nam"]
[Black "Szakmary, Domonkos"]
[Result "1-0"]
[ECO "B02"]
[WhiteElo "2144"]
[BlackElo "1967"]
[Annotator "TA"]
[PlyCount "101"]
[EventDate "2022.07.21"]
[EventType "tourn"]
[EventCountry "HUN"]
[SourceTitle "playchess.com"]
[Source "ChessBase"]
[SourceQuality "1"]
[TimeControl "40/5400+30:1800+30"]

{[%evp 18,101,2,0,-10,-21,-24,-50,-49,-45,-49,-49,-33,-25,-27,-29,-25,0,26,26,22,24,25,20,20,0,0,0,0,-14,52,9,50,0,64,52,170,175,179,183,209,181,192,171,187,192,179,179,173,160,193,207,205,200,193,153,195,195,913,931,916,918,681,535,919,919,909,870,1067,995,981,545,29974,29975,29975,29976,29976,29977,29977,29978,29978,29978,29980,29979,29978,29978]} 1. e4 {[%emt 0:00:36][%cal Be2e4,Be4e5][%mdl 32]} Nf6 {[%emt 0:00:46]} 2. e5 {[%emt 0:00:16]} Nd5 {[%emt 0:00:04]} 3. Nc3 {[%emt 0:00:08]} Nxc3 {[%emt 0:00:23]} 4. bxc3 {[%emt 0:00:07]} d6 {[%emt 0:00:19]} 5. f4 {[%emt 0:00:16]} g6 {[%emt 0:00:32]} 6. d4 {[%emt 0:01:33]} Bg7 {[%emt 0:00:10]} 7. Nf3 {[%emt 0:03:19]} O-O {[%emt 0:00:19]} 8. Bd3 {[%emt 0:02:56]} c5 {[%emt 0:00:16]} 9. O-O {[%emt 0:02:11]} dxe5 {[%emt 0:00:41]} 10. fxe5 {[%emt 0:02:54]} Nc6 {[%emt 0:00:03][%cal Rc5d4] B02: Alekhine's Defence: Chase Variation and lines with early Nc3.} 11. Be3 {[%emt 0:05:07]} Bg4 {[%emt 0:00:29]} 12. Be2 {[%emt 0:08:27]} Qa5 {[%emt 0:03:55] Black is slightly better.} 13. Rb1 {[%emt 0:16:10] [#]} Rad8 $146 {[%emt 0:13:49]} ({Predecessor:} 13... Qxc3 14. Rb3 Qa5 15. Rb5 Qa3 16. Bc1 Qxa2 17. Rxc5 Rad8 18. d5 Bxf3 19. Rxf3 Qa1 {0-1 (30) Heinemann,T (2390)-Burkart,P (2285) Germany 1993}) 14. Qe1 {[%emt 0:16:13]} b6 {[%emt 0:14:56]} 15. Qh4 {[%emt 0:07:35]} Bxf3 {[%emt 0:10:49]} 16. Bxf3 {[%emt 0:00:43]} cxd4 {[%emt 0:01:51]} 17. cxd4 Qa4 (17... Qc3 $5 {[%cal Rc3e3]} 18. Rb3 Qxc2 $11) 18. Bxc6 {[%emt 0:06:04]} Qxc6 {[%emt 0:01:37]} 19. Qxe7 {[%emt 0:04:28]} Rd7 {[%emt 0:05:42]} 20. Qa3 {[%emt 0:02:44]} Qxc2 {[%emt 0:02:14]} 21. Rb2 Qe4 22. Rbf2 {[%emt 0:02:48]} Qd5 {[%emt 0:02:29]} 23. Rc1 {[%emt 0:04:43]} Rfd8 {[%emt 0:18:47]} (23... f6 $11) 24. h3 {[%emt 0:04:23]} Qb7 {[%emt 0:04:51]} 25. Rfc2 {[%emt 0:01:45]} (25. Qb3 $14) 25... Bf8 {[%emt 0:02:11]} (25... Qe4 $11 26. Rf2 a5) 26. Qb3 $36 {[%mdl 2048] White has some pressure.} Qd5 {White now steadily converts the win.} (26... Qe4 $14) 27. Qxd5 $18 {[%emt 0:01:43]} Rxd5 {[%emt 0:00:32]} 28. Rc7 R8d7 {[%emt 0:01:25]} 29. Rxd7 {[%emt 0:02:13]} Rxd7 {[%emt 0:00:04][%mdl 4096] Endgame KRB-KRB} 30. Rc8 {[%emt 0:00:42] Bh6 would kill now.} Kg7 {[%emt 0:02:35] Against Bh6+} 31. Kf2 {[%emt 0:00:49]} Be7 {[%emt 0:01:05]} 32. Kf3 {[%emt 0:02:30]} f6 {[%emt 0:01:24] [#]} 33. Ke4 {[%emt 0:00:37]} Kf7 {[#]} 34. Rc6 $1 fxe5 {[%emt 0:00:34]} 35. dxe5 {[%emt 0:00:37] e6+ is the strong threat.} ({Not} 35. Kxe5 Bh4 $14) 35... Ke8 {[%emt 0:01:46]} 36. Bd4 {[%emt 0:00:36]} Kd8 {[%emt 0:00:36]} 37. e6 {[%emt 0:01:11]} Rd6 {[%emt 0:00:04]} (37... Rb7 38. Be5 Bg5) 38. Rxd6+ {[%emt 0:00:14]} Bxd6 {[%emt 0:00:05] KB-KB} 39. Kd5 {[%emt 0:00:20]} Be7 {[%emt 0:00:59]} 40. Be5 {[%emt 0:00:00]} Bc5 {[%emt 0:00:00]} 41. Bd6 {[%emt 0:03:08]} Bf2 {[%emt 0:02:03]} 42. Kc6 {[%emt 0:00:34]} Be3 {[%emt 0:02:05]} 43. a4 {[%emt 0:01:11]} Bf2 {[%emt 0:00:44]} 44. Bb8 {[%emt 0:08:01]} Ke7 {[%emt 0:00:04]} 45. Bxa7 {[%emt 0:03:40] White mates.} Kxe6 46. Bxb6 {[%emt 0:00:21]} Be1 {[%emt 0:00:29]} 47. a5 {[%emt 0:00:26]} Bxa5 {[%emt 0:00:03]} 48. Bxa5 {[%emt 0:00:03]} Kf5 {[%emt 0:00:04]} 49. Kd5 {[%emt 0:01:56]} h5 {[%emt 0:00:12]} 50. Bc7 {[%emt 0:01:59]} h4 {[%emt 0:00:37]} 51. g4+ {[%emt 0:00:52] Weighted Error Value: White=0.18 (very precise) /Black=0.35} 1-0

[Event "Hungarian Youth-ch U14 2022"]
[Site "Eger"]
[Date "2022.07.26"]
[Round "4.4"]
[White "Bodrogi, Bendeguz"]
[Black "Kolimar, Kristof Pal"]
[Result "1/2-1/2"]
[ECO "A06"]
[WhiteElo "2170"]
[BlackElo "2160"]
[Annotator "TA"]
[PlyCount "41"]
[EventDate "2022.07.21"]
[EventType "tourn"]
[EventCountry "HUN"]
[SourceTitle "playchess.com"]
[Source "ChessBase"]
[SourceQuality "1"]
[TimeControl "40/5400+30:1800+30"]

{[%evp 20,41,18,4,13,11,13,0,2,0,0,0,0,-1,0,0,0,0,12,15,5,0,0,0]} 1. g3 {[%emt 0:00:36]} d5 {[%emt 0:00:36]} 2. Nf3 {[%emt 0:00:07]} Nf6 {[%emt 0:00:02]} 3. Bg2 {[%emt 0:00:36]} e6 {[%emt 0:00:07]} 4. O-O {[%emt 0:00:22]} Be7 {[%emt 0:00:05]} 5. c4 {[%emt 0:00:08]} O-O {[%emt 0:00:03]} 6. d4 {[%emt 0:00:12]} dxc4 {[%emt 0:00:05]} 7. Qc2 {[%emt 0:00:24]} a6 {[%emt 0:01:12]} 8. a4 {[%emt 0:00:13]} Bd7 {[%emt 0:01:12]} 9. Qxc4 {[%emt 0:01:07]} Bc6 {[%emt 0:00:12]} 10. Bf4 {[%emt 0:00:57]} Nbd7 {[%emt 0:05:03][%cal Bb8d7,Bd7b6,Bb6d5,Bd5c3][%mdl 32]} 11. Nc3 {[%emt 0:00:35] The position is equal. 11.Qc1 is the modern continuation.} Bd6 {[%emt 0:06:13] E05: Open Catalan: 5 Nf3 Be7.} 12. Bxd6 {[%emt 0:19:31]} cxd6 {[%emt 0:00:01]} 13. Qb4 {[%emt 0:00:48]} Nb6 {[%emt 0:12:43] [#]} 14. Rfe1 $146 {[%emt 0:03:24]} ({Predecessor:} 14. Nd2 Nfd5 15. Qb3 a5 16. Nxd5 Nxd5 17. e4 Nb4 18. d5 {½-½ (18) Debonis,P (1993)-Faust,D (1933) FICGS email 2020}) 14... Nbd5 {[%emt 0:11:27]} 15. Qb3 {[%emt 0:04:00]} Rc8 {[%emt 0:20:05]} 16. Nd2 {[%emt 0:06:36]} Nxc3 {[%emt 0:08:28]} (16... a5 {feels hotter.} 17. e4 Nb4 18. Na2 Nxa2 19. Rxa2 d5) 17. bxc3 {[%emt 0:00:17]} Bxg2 {[%emt 0:00:40]} 18. Kxg2 {[%emt 0:00:13]} b5 {[%emt 0:00:03]} 19. axb5 {[%emt 0:15:16]} axb5 {[%emt 0:01:18]} 20. Qxb5 {[%emt 0:10:59]} Rxc3 {[%emt 0:00:07]} 21. Nf3 {[%emt 0:00:05] Not much happened in this game.  Weighted Error Value: White=0.04 (flawless) /Black=0.03 (flawless)} 1/2-1/2

[Event "Hungarian Youth-ch U14 2022"]
[Site "Eger"]
[Date "2022.07.26"]
[Round "4.5"]
[White "Megyaszai, Balazs"]
[Black "Gergely, Daniel"]
[Result "1/2-1/2"]
[ECO "B36"]
[WhiteElo "1919"]
[BlackElo "2053"]
[Annotator "RC"]
[PlyCount "64"]
[EventDate "2022.07.21"]
[EventType "tourn"]
[EventCountry "HUN"]
[SourceTitle "playchess.com"]
[Source "ChessBase"]
[SourceQuality "1"]
[TimeControl "40/5400+30:1800+30"]

1. e4 {[%emt 0:00:43]} c5 {[%emt 0:00:43]} 2. Nf3 {[%emt 0:00:31]} Nc6 {[%emt 0:00:18]} 3. d4 {[%emt 0:00:38]} cxd4 {[%emt 0:00:07]} 4. Nxd4 {[%emt 0:00:34]} g6 {[%emt 0:00:26]} 5. c4 {[%emt 0:02:24]} Nf6 {[%emt 0:00:14]} 6. Nc3 {[%emt 0:02:02]} d6 {[%emt 0:00:12]} 7. Be2 {[%emt 0:01:48]} Nxd4 {[%emt 0:00:13]} 8. Qxd4 {[%emt 0:00:12]} Bg7 {[%emt 0:00:13]} 9. Be3 {[%emt 0:01:08]} O-O {[%emt 0:00:20]} 10. Qd2 {[%emt 0:00:37]} Be6 {[%emt 0:00:21]} 11. Rc1 {[%emt 0:08:13]} Qa5 {[%emt 0:00:25]} 12. f3 {[%emt 0:01:09]} Rfc8 {[%emt 0:00:41]} 13. b3 {[%emt 0:00:16]} a6 {[%emt 0:00:21]} 14. Na4 {[%emt 0:00:17]} Qxd2+ {[%emt 0:00:22]} 15. Kxd2 {[%emt 0:02:28]} Nd7 {[%emt 0:00:00]} 16. g4 {[%emt 0:00:54]} f5 {[%emt 0:01:12]} 17. exf5 {[%emt 0:32:11]} gxf5 {[%emt 0:00:10]} 18. h3 {[%emt 0:00:28]} Rf8 {[%emt 0:02:13]} 19. Nc3 {[%emt 0:08:29]} f4 {[%emt 0:08:25]} 20. Bf2 {[%emt 0:02:50]} Bf7 {[%emt 0:26:05]} 21. Rhd1 {[%emt 0:03:09]} Nf6 {[%emt 0:03:41]} 22. Ke1 {[%emt 0:04:47]} Rfc8 {[%emt 0:03:46]} 23. Na4 {[%emt 0:02:46]} Nd7 {[%emt 0:01:20]} 24. Bd3 {[%emt 0:01:15]} e6 {[%emt 0:09:12]} 25. Kf1 {[%emt 0:05:48]} Rc6 {[%emt 0:03:47]} 26. Be4 {[%emt 0:02:57]} d5 {[%emt 0:00:43]} 27. cxd5 {[%emt 0:00:35]} exd5 {[%emt 0:01:05]} 28. Bf5 {[%emt 0:00:30]} Ne5 {[%emt 0:02:31]} 29. Kg2 {[%emt 0:01:03]} Bf6 {[%emt 0:10:01]} 30. Nc5 {[%emt 0:01:57]} b5 {[%emt 0:03:32]} 31. Nd7 {[%emt 0:02:38]} Bg7 {[%emt 0:01:47]} 32. Nb6 {[%emt 0:03:42]} Rxc1 {[%emt 0:04:47]} 1/2-1/2

[Event "Hungarian Youth-ch U14 2022"]
[Site "Eger"]
[Date "2022.07.26"]
[Round "4.6"]
[White "Lazsadi, Kerka Lilla"]
[Black "Szarvas, Nora Orsolya"]
[Result "1-0"]
[ECO "D85"]
[WhiteElo "1674"]
[BlackElo "1692"]
[Annotator "NA RC COMBH"]
[PlyCount "89"]
[EventDate "2022.07.21"]
[EventType "tourn"]
[EventCountry "HUN"]
[SourceTitle "playchess.com"]
[Source "ChessBase"]
[SourceQuality "1"]
[TimeControl "40/5400+30:1800+30"]

1. d4 {[%emt 0:00:34]} Nf6 {[%emt 0:00:52]} 2. c4 {[%emt 0:00:13]} g6 {[%emt 0:00:07]} 3. Nc3 {[%emt 0:00:06]} d5 {[%emt 0:00:11]} 4. cxd5 {[%emt 0:00:18]} Nxd5 {[%emt 0:00:07]} 5. Bd2 {[%emt 0:00:20]} Bg7 {[%emt 0:02:23]} 6. e4 {[%emt 0:00:15]} Nxc3 {[%emt 0:05:59]} 7. Bxc3 {[%emt 0:00:12]} O-O {[%emt 0:09:22]} 8. Nf3 {[%emt 0:02:18]} c5 {[%emt 0:10:19]} 9. d5 {[%emt 0:00:40]} Bg4 {[%emt 0:13:43]} 10. Be2 {[%emt 0:01:21]} Nd7 {[%emt 0:02:02]} 11. Bxg7 {[%emt 0:02:04]} Kxg7 {[%emt 0:02:15]} 12. O-O {[%emt 0:00:50]} Rc8 {[%emt 0:11:11]} 13. Rc1 {[%emt 0:13:16]} Kg8 {[%emt 0:05:34]} 14. Nd2 {[%emt 0:07:47]} Bxe2 {[%emt 0:01:17]} 15. Qxe2 {[%emt 0:00:10]} Nb6 {[%emt 0:03:19]} 16. Nc4 {[%emt 0:01:44]} Nxc4 {[%emt 0:00:58]} 17. Qxc4 {[%emt 0:00:09]} Qd6 {[%emt 0:01:02]} 18. f4 {[%emt 0:03:29]} Rfd8 {[%emt 0:01:50]} 19. Rcd1 {[%emt 0:02:51]} b6 {[%emt 0:05:46]} 20. e5 {[%emt 0:04:34]} Qc7 {[%emt 0:01:14]} 21. Qe4 {[%emt 0:02:50]} f6 {[%emt 0:08:00]} 22. Rf3 {[%emt 0:11:08]} Rf8 {[%emt 0:05:43]} 23. Rdd3 {[%emt 0:06:11]} Rcd8 {[%emt 0:01:48]} 24. Rh3 {[%emt 0:02:53]} fxe5 {[%emt 0:02:36]} 25. fxe5 {[%emt 0:00:48]} Rf5 {[%emt 0:00:37]} 26. Rhe3 {[%emt 0:09:20]} Rdf8 {[%emt 0:00:34]} 27. Rd1 {[%emt 0:01:20]} Rf4 {[%emt 0:00:21]} 28. Qc2 {[%emt 0:01:29]} R4f5 {[%emt 0:01:54]} 29. d6 {[%emt 0:02:59]} exd6 {[%emt 0:00:17]} 30. exd6 {[%emt 0:00:16]} Qd8 {[%emt 0:00:47]} 31. Qc4+ {[%emt 0:01:19]} Kg7 {[%emt 0:01:05]} 32. Qe6 {[%emt 0:03:14]} R5f7 {[%emt 0:00:38]} 33. d7 {[%emt 0:03:06]} h6 {[%emt 0:01:57]} 34. h3 {[%emt 0:06:15]} Rf6 {[%emt 0:00:08]} 35. Qe7+ {[%emt 0:01:12]} R6f7 {[%emt 0:00:13]} 36. Qe5+ {[%emt 0:00:11]} Kh7 {[%emt 0:00:15]} 37. Qd6 {[%emt 0:01:35]} Rf6 {[%emt 0:00:37]} 38. Re7+ {[%emt 0:00:48]} R6f7 {[%emt 0:00:09]} 39. Rxf7+ {[%emt 0:00:48]} Rxf7 {[%emt 0:00:05]} 40. Qe6 {[%emt 0:00:00]} Rf8 {[%emt 0:00:00]} 41. Rd6 {[%emt 0:01:18]} Qg5 {[%emt 0:06:10]} 42. Rd1 {[%emt 0:02:42]} c4 {[%emt 0:08:30]} 43. Qe8 {[%emt 0:01:21]} Qc5+ {[%emt 0:01:09]} 44. Kh1 {[%emt 0:00:12]} Qh5 {[%emt 0:00:50]} 45. Qe7+ {[%emt 0:00:08]} 1-0

[Event "Hungarian Youth-ch U14 2022"]
[Site "Eger"]
[Date "2022.07.26"]
[Round "4.7"]
[White "Balazs, Sztella Anna"]
[Black "Eros, Vivien"]
[Result "1-0"]
[ECO "B36"]
[WhiteElo "1663"]
[BlackElo "1599"]
[Annotator "NA RC COMBH"]
[PlyCount "147"]
[EventDate "2022.07.21"]
[EventType "tourn"]
[EventCountry "HUN"]
[SourceTitle "playchess.com"]
[Source "ChessBase"]
[SourceQuality "1"]
[TimeControl "40/5400+30:1800+30"]

1. e4 {[%emt 0:00:31]} c5 {[%emt 0:00:33]} 2. Nf3 {[%emt 0:00:05]} Nc6 {[%emt 0:00:03]} 3. d4 {[%emt 0:00:05]} cxd4 {[%emt 0:00:03]} 4. Nxd4 {[%emt 0:00:04]} g6 {[%emt 0:00:05]} 5. c4 {[%emt 0:00:06]} Nf6 {[%emt 0:00:09]} 6. Nc3 {[%emt 0:00:07]} d6 7. Be2 {[%emt 0:00:32]} Nxd4 {[%emt 0:00:40]} 8. Qxd4 {[%emt 0:00:08]} Bg7 {[%emt 0:00:04]} 9. Be3 {[%emt 0:01:00]} O-O {[%emt 0:00:16]} 10. Qd2 {[%emt 0:00:27]} a5 {[%emt 0:00:21]} 11. f3 {[%emt 0:02:24]} a4 {[%emt 0:01:53]} 12. a3 {[%emt 0:03:00]} Be6 {[%emt 0:00:48]} 13. O-O {[%emt 0:02:06]} Qa5 {[%emt 0:04:17]} 14. Nd5 {[%emt 0:07:01]} Qxd2 {[%emt 0:01:53]} 15. Nxe7+ {[%emt 0:01:43]} Kh8 {[%emt 0:00:04]} 16. Bxd2 {[%emt 0:00:08]} Rfe8 {[%emt 0:00:11]} 17. Nd5 {[%emt 0:01:18]} Nxd5 {[%emt 0:00:06]} 18. cxd5 {[%emt 0:01:03]} Bxd5 {[%emt 0:00:05]} 19. Bb4 {[%emt 0:16:53]} Bb3 {[%emt 0:09:29]} 20. Bxd6 {[%emt 0:04:14]} Bxb2 {[%emt 0:04:41]} 21. Rab1 {[%emt 0:00:50]} Bd4+ {[%emt 0:00:23]} 22. Kh1 {[%emt 0:00:08]} Rad8 {[%emt 0:08:17]} 23. Bb5 {[%emt 0:06:33]} Re6 {[%emt 0:00:43]} 24. Bc7 {[%emt 0:03:04]} Rc8 {[%emt 0:00:56]} 25. Bf4 {[%emt 0:01:58]} Rc5 {[%emt 0:14:30]} 26. Bxa4 {[%emt 0:08:05]} Bxa4 {[%emt 0:01:08]} 27. Rb4 {[%emt 0:00:07]} Bb5 {[%emt 0:00:36]} 28. Rfb1 {[%emt 0:00:19]} Bd3 {[%emt 0:01:14]} 29. Rd1 {[%emt 0:00:12]} Bc3 {[%emt 0:00:32]} 30. Rxb7 {[%emt 0:01:00]} Bxe4 {[%emt 0:42:06]} 31. fxe4 {[%emt 0:08:17]} Rxe4 {[%emt 0:00:15]} 32. Rxf7 {[%emt 0:01:16]} Kg8 {[%emt 0:01:01]} 33. Rf8+ {[%emt 0:01:14]} Kg7 {[%emt 0:01:48]} 34. Rf1 {[%emt 0:04:51]} Rc6 {[%emt 0:06:31]} 35. Bg3 {[%emt 0:02:21]} Bb2 {[%emt 0:01:05]} 36. R8f7+ {[%emt 0:09:17]} Kg8 {[%emt 0:00:37]} 37. Ra7 {[%emt 0:01:57]} Rec4 {[%emt 0:00:56]} 38. h4 {[%emt 0:02:59]} Rc3 {[%emt 0:00:32]} 39. Be5 {[%emt 0:02:40]} Rc1 {[%emt 0:00:10]} 40. Rg7+ {[%emt 0:00:00]} Kh8 {[%emt 0:00:00]} 41. Bxb2 {[%emt 0:00:25]} Rxf1+ {[%emt 0:01:10]} 42. Kh2 {[%emt 0:00:05]} Rc2 {[%emt 0:01:08]} 43. Rf7+ {[%emt 0:00:34]} Rxb2 {[%emt 0:00:48]} 44. Rxf1 {[%emt 0:00:09]} Ra2 {[%emt 0:00:09]} 45. Rf3 {[%emt 0:00:12]} Kg7 {[%emt 0:00:26]} 46. Kh3 {[%emt 0:00:50]} h6 {[%emt 0:00:28]} 47. g4 {[%emt 0:01:58]} g5 {[%emt 0:00:32]} 48. h5 {[%emt 0:00:35]} Rb2 {[%emt 0:00:43]} 49. Kg3 {[%emt 0:00:33]} Ra2 {[%emt 0:00:56]} 50. Re3 {[%emt 0:01:09]} Kf6 {[%emt 0:00:36]} 51. Kf3 {[%emt 0:00:36]} Rh2 {[%emt 0:00:30]} 52. a4 {[%emt 0:03:04]} Ra2 {[%emt 0:00:23]} 53. Re4 {[%emt 0:00:55]} Ra3+ {[%emt 0:01:10]} 54. Ke2 {[%emt 0:01:18]} Ra2+ {[%emt 0:02:19]} 55. Kd3 {[%emt 0:00:11]} Ra3+ {[%emt 0:01:54]} 56. Kc2 {[%emt 0:01:17]} Rf3 {[%emt 0:00:48]} 57. Kb2 {[%emt 0:02:00]} Rf2+ {[%emt 0:03:39]} 58. Kb3 {[%emt 0:00:43]} Rf3+ {[%emt 0:00:11]} 59. Kb4 {[%emt 0:00:13]} Rf1 {[%emt 0:02:20]} 60. a5 {[%emt 0:00:38]} Rb1+ {[%emt 0:00:19]} 61. Kc5 {[%emt 0:00:31]} Ra1 {[%emt 0:00:48]} 62. Kb6 {[%emt 0:00:20]} Rb1+ {[%emt 0:00:22]} 63. Ka7 {[%emt 0:00:35]} Rb3 {[%emt 0:01:10]} 64. a6 {[%emt 0:00:16]} Rb2 {[%emt 0:00:05]} 65. Rc4 {[%emt 0:00:29]} Ke5 {[%emt 0:00:20]} 66. Rc6 {[%emt 0:00:33]} Kf4 {[%emt 0:00:32]} 67. Rxh6 {[%emt 0:00:20]} Kxg4 {[%emt 0:00:06]} 68. Rb6 {[%emt 0:00:19]} Rf2 {[%emt 0:01:19]} 69. h6 {[%emt 0:00:14]} Rf7+ {[%emt 0:00:11]} 70. Rb7 {[%emt 0:00:06]} Rf8 {[%emt 0:01:58]} 71. h7 {[%emt 0:01:05]} Rh8 {[%emt 0:00:45]} 72. Rc7 {[%emt 0:00:33]} Kf5 {[%emt 0:02:32]} 73. Kb7 {[%emt 0:00:37]} Kg6 {[%emt 0:00:23]} 74. a7 {[%emt 0:00:12]} 1-0

[Event "Hungarian Youth-ch U14 2022"]
[Site "Eger"]
[Date "2022.07.26"]
[Round "4.8"]
[White "Toth, Timea"]
[Black "Beznicza, Mira"]
[Result "0-1"]
[ECO "C03"]
[WhiteElo "1964"]
[BlackElo "1608"]
[Annotator "TA"]
[PlyCount "84"]
[EventDate "2022.07.21"]
[EventType "tourn"]
[EventCountry "HUN"]
[SourceTitle "playchess.com"]
[Source "ChessBase"]
[SourceQuality "1"]
[TimeControl "40/5400+30:1800+30"]

{[%evp 9,83,-3,4,0,69,41,68,36,40,-58,-58,-58,-59,-58,-6,-46,-42,-26,10,-73,-56,-55,-77,-89,-89,-117,-64,-74,-67,-53,-21,-47,43,-78,50,-65,-37,-37,0,-81,-67,-187,-181,-187,-197,-195,-187,-206,-179,-277,-266,-457,-262,-262,-251,-294,-283,-253,-14,-564,-536,-1041,-951,-1521,-1484,-1998,-1381,-1632,-1203,-29995,-29996,-29996,-29996,-29996,-29997,-29999]} 1. e4 {[%emt 0:00:33]} e6 {[%emt 0:00:42]} 2. d4 {[%emt 0:00:03]} d5 {[%emt 0:00:12]} 3. Nd2 {[%emt 0:00:06]} h6 {[%emt 0:00:58]} 4. e5 {[%emt 0:03:05]} c5 {[%emt 0:02:07]} 5. c3 {[%emt 0:00:47]} cxd4 {[%emt 0:03:39]} 6. cxd4 {[%emt 0:10:16] [#] C03: French Tarrasch: Unusual Black 3rd moves.} a5 $146 {[%emt 0:04:56]} (6... Qb6 $11) ({Predecessor:} 6... Qb6 7. Ndf3 Bd7 8. h3 Ne7 9. Bd3 Bb5 10. Ne2 Bxd3 11. Qxd3 Nec6 12. O-O Qa6 13. Qxa6 Nxa6 {½-½ (49) Velicka,P (2409)-Tratar,M (2487) Austria 2015}) 7. a3 {[%emt 0:16:59]} Qb6 {[%emt 0:08:00]} 8. Ngf3 {[%emt 0:08:01] White is slightly better.} Nc6 {[%emt 0:05:03]} 9. Qb3 {[%emt 0:16:47]} (9. Nb1 $14) 9... Qxb3 $15 {[%emt 0:11:50]} 10. Nxb3 {[%emt 0:00:07]} a4 {[%emt 0:00:21]} 11. Nbd2 {[%emt 0:01:25]} Bd7 {[%emt 0:04:38]} (11... Na5 $15) 12. Rb1 {[%emt 0:11:19]} g5 {[%emt 0:20:09]} 13. h3 {[%emt 0:05:05]} f6 {[%emt 0:03:08]} 14. g3 {[%emt 0:01:25]} (14. exf6 $11 {keeps the balance.} Nxf6 15. b4) 14... fxe5 {[%emt 0:05:06]} 15. Nxe5 {[%emt 0:00:09]} Nxd4 {[%emt 0:03:16]} 16. Bd3 {[%emt 0:01:08]} Ne7 {[%emt 0:01:42]} 17. b3 {[%emt 0:03:39] [#] Threatens to win with Bb2.} Bg7 {[%emt 0:07:02]} ({Better is} 17... Nec6 $1 $17 {[%cal Rc6e5]} 18. Nxc6 Bxc6 19. Bg6+ Kd7) 18. Nxd7 {[%emt 0:01:29]} Kxd7 {[%emt 0:00:47]} 19. bxa4 {[%emt 0:00:35]} Ra7 {[%emt 0:01:44]} 20. O-O {[%emt 0:13:07]} e5 {[%emt 0:02:59]} (20... Kd6 $15) 21. f3 {[%emt 0:02:23]} (21. Nb3 $1 $14 {stays ahead.}) 21... h5 {[%emt 0:03:47]} (21... Rc8 $17 22. Bb2 Rxa4 23. Bxd4 Rxd4 24. Bb5+ (24. Rxb7+ Ke6 $15) 24... Kd6) 22. Re1 {[%emt 0:01:18]} ({White should try} 22. Nb3 $14) 22... Rf8 {[%emt 0:02:32]} (22... h4 $5 {[%cal Rh4g3]} 23. Bb2 Nec6 $15) 23. Kg2 {[%emt 0:00:23]} Rc8 {[%emt 0:04:29]} 24. Bb5+ {[%emt 0:01:11]} (24. Nb3 $11 Rc3 25. Nxd4 Rxd3 26. Nb3) 24... Nxb5 {[%emt 0:00:51] Black is more active.} 25. axb5 {[%emt 0:00:05]} ({White must play} 25. Rxb5 $15 Rc2 26. Kg1) 25... Nf5 $19 {[%emt 0:00:53]} ({Inferior is} 25... Rc2 26. Rb2 Rc8 27. Nb1 $17) 26. g4 {[%emt 0:01:00]} hxg4 {[%emt 0:00:32]} 27. hxg4 {[%emt 0:00:02] [#]} Nd4 $36 {[%emt 0:00:28][%mdl 2048] Black is in control.} 28. b6 {[%emt 0:00:49]} Ra6 {[%emt 0:00:45]} 29. Bb2 {[%emt 0:00:53]} (29. Rd1 {keeps fighting.}) 29... Rc2 {[%emt 0:00:08]} 30. Bxd4 $2 {[%emt 0:00:32]} (30. Red1) 30... Rxd2+ {[%emt 0:00:13]} (30... exd4 $142 31. Red1 Rxa3) 31. Bf2 {[%emt 0:00:04]} Rxa3 {[%emt 0:00:14] White must now prevent ...Raa2.} 32. Rbc1 {[%emt 0:00:34]} Raa2 {[%emt 0:00:45]} 33. Rc7+ {[%emt 0:00:22]} Kd8 $2 {[%emt 0:00:21]} (33... Ke6 $19 34. Rxg7 Rxf2+ 35. Kg1 Rxf3 36. Rg6+ Rf6 37. Rxg5 e4) 34. Rf1 {[%emt 0:00:19][%mdl 8192] White does not recover from this.} (34. Kh1 $11 {and White has nothing to worry.}) 34... Bf8 {[%emt 0:00:19] ...Bd6 is the strong threat.} 35. Rxb7 {[%emt 0:00:07]} Bc5 {[%emt 0:00:23]} 36. Rb8+ {[%emt 0:01:08]} Kd7 {[%emt 0:00:01]} 37. Rb7+ {[%emt 0:00:19]} Kd6 {[%emt 0:00:19][%cal Rc5f2]} 38. Rg7 {[%emt 0:00:43]} Bxf2 {[%emt 0:01:01]} 39. Rxf2 {[%emt 0:00:40]} Rxf2+ {[%emt 0:00:08] Black mates.} 40. Kg1 {[%emt 0:00:00]} Rg2+ {[%emt 0:00:00]} 41. Kh1 {[%emt 0:00:28]} Rgb2 {[%emt 0:00:52][%cal Ra2a1]} 42. b7 {[%emt 0:01:15]} Rb1# {Weighted Error Value: White=1.11/Black=0.49} 0-1

[Event "Hungarian Youth-ch U14 2022"]
[Site "Eger"]
[Date "2022.07.26"]
[Round "4.9"]
[White "Kovacs, Reka"]
[Black "Horvath, Greta"]
[Result "1/2-1/2"]
[ECO "C50"]
[WhiteElo "1716"]
[BlackElo "1346"]
[Annotator "NA RC COMBH"]
[PlyCount "70"]
[EventDate "2022.07.21"]
[EventType "tourn"]
[EventCountry "HUN"]
[SourceTitle "playchess.com"]
[Source "ChessBase"]
[SourceQuality "1"]
[TimeControl "40/5400+30:1800+30"]

1. e4 {[%emt 0:00:33]} e5 {[%emt 0:00:34]} 2. Nf3 {[%emt 0:00:07]} Nc6 {[%emt 0:00:07]} 3. Bc4 {[%emt 0:00:11]} Nf6 {[%emt 0:00:10]} 4. d3 {[%emt 0:00:13]} Bc5 {[%emt 0:00:09]} 5. c3 {[%emt 0:00:11]} d6 {[%emt 0:00:17]} 6. O-O {[%emt 0:00:49]} O-O {[%emt 0:00:54]} 7. Nbd2 {[%emt 0:01:52]} a6 {[%emt 0:03:19]} 8. Bb3 {[%emt 0:00:14]} Ba7 {[%emt 0:03:55]} 9. Re1 {[%emt 0:01:25]} h6 {[%emt 0:08:09]} 10. Nf1 {[%emt 0:06:58]} Re8 {[%emt 0:05:59]} 11. Be3 {[%emt 0:05:17]} Bxe3 {[%emt 0:07:30]} 12. Nxe3 {[%emt 0:00:34]} Be6 {[%emt 0:02:37]} 13. Nc4 {[%emt 0:18:35]} Bxc4 {[%emt 0:09:45]} 14. Bxc4 {[%emt 0:01:22]} Na5 {[%emt 0:03:20]} 15. Bb3 {[%emt 0:01:52]} Nxb3 {[%emt 0:04:41]} 16. Qxb3 {[%emt 0:00:04]} b6 {[%emt 0:01:14]} 17. Rad1 {[%emt 0:06:46]} Qd7 {[%emt 0:05:45]} 18. Qc2 {[%emt 0:10:42]} Qc6 {[%emt 0:06:17]} 19. d4 {[%emt 0:05:49]} exd4 {[%emt 0:05:01]} 20. Nxd4 {[%emt 0:00:42]} Qd7 {[%emt 0:00:59]} 21. f3 {[%emt 0:03:00]} Rad8 {[%emt 0:07:55]} 22. Nf5 {[%emt 0:07:01]} Qb5 {[%emt 0:04:13]} 23. Qf2 {[%emt 0:02:30]} Qc5 {[%emt 0:03:50]} 24. Rd4 {[%emt 0:08:23]} Kh7 {[%emt 0:03:18]} 25. Qh4 {[%emt 0:01:51]} Ng8 {[%emt 0:01:40]} 26. Kh1 {[%emt 0:01:49]} g6 {[%emt 0:02:30]} 27. Ne3 {[%emt 0:00:39]} Qe5 {[%emt 0:01:47]} 28. Nd5 {[%emt 0:03:41]} Rc8 {[%emt 0:02:53]} 29. Nb4 {[%emt 0:06:58]} c5 {[%emt 0:01:22]} 30. Rd5 {[%emt 0:00:51]} Qe7 {[%emt 0:00:17]} 31. Qf2 {[%emt 0:04:20]} cxb4 {[%emt 0:00:55]} 32. Qxb6 {[%emt 0:00:02]} bxc3 {[%emt 0:00:37]} 33. bxc3 {[%emt 0:00:14]} Rxc3 {[%emt 0:00:59]} 34. Rxd6 {[%emt 0:00:21]} Ra8 {[%emt 0:01:19]} 35. Red1 {[%emt 0:00:14]} Qc7 {[%emt 0:01:23]} 1/2-1/2